fUSD/lending_fUSD_20251011
["ID","MTS","AMOUNT","RATE_DAILY","PERIOD"]
[390881182,1760187040400,-4105.62211522,0.00015,2]
[390881195,1760187042843,-253201.35855239,0.00015,2]
[390881196,1760187043058,-279.3450855,0.00015,2]
[390881201,1760187045872,-547.49999997,0.00015,2]
[390881202,1760187045883,-296.30684922,0.00015,2]
[390881203,1760187046037,-1098.9282839,0.00015,2]
[390881204,1760187046389,167.13,0.00027397,120]
[390881251,1760187648291,1100.0,0.00027397,120]
[390881252,1760187688058,10000.0,0.00027397,120]
[390881259,1760187796933,154.606,0.00027397,120]
[390881261,1760188036936,167.53,0.000273,120]
[390881274,1760188232843,-459.66,0.00014136,2]
[390881275,1760188232853,-416.95084872,0.00014146,2]
[390881276,1760188232862,-309.77927877,0.00014162,2]
[390881277,1760188232874,-1690.22072123,0.00014162,2]
[390881278,1760188232884,-250.0,0.00014211,2]
[390881279,1760188232894,-160.64,0.00014223,2]
[390881280,1760188232904,-481.7,0.00014727,2]
[390881281,1760188232913,-1200.0,0.00014847,2]
[390881282,1760188232923,-1200.0,0.00014848,2]
[390881283,1760188232932,-300.0,0.00014848,2]
[390881284,1760188232942,-316.0117322,0.00014849,2]
[390881285,1760188232951,-255.76224544,0.00014849,2]
[390881286,1760188232960,-150.0,0.00014849,2]
[390881287,1760188232969,-2597.37241179,0.0001485,2]
[390881288,1760188232982,-533.50666572,0.0001485,2]
[390881289,1760188232993,-7731.85353363,0.0001485,2]
[390881290,1760188233011,-405.95789884,0.0001485,2]
[390881291,1760188233085,-344.72880187,0.0001416,2]
[390881292,1760188233095,-23169.22343364,0.0001485,2]
[390881294,1760188233248,-286.6042727,0.0001485,2]
[390881298,1760188237845,-537.96,0.0001485,2]
[390881299,1760188237857,-531.63683674,0.0001485,2]
[390881300,1760188237903,-53524.06337941,0.0001485,2]
[390881301,1760188237913,-200.0,0.0001488,2]
[390881302,1760188237923,-192.33248259,0.000149,2]
[390881303,1760188237932,-296.94415666,0.000149,5]
[390881304,1760188237961,-3.05584334,0.000149,5]
[390881305,1760188237971,-3576.18109994,0.000149,2]
[390881306,1760188237981,-201.55781785,0.000149,2]
[390881307,1760188237990,-172.79687416,0.000149,2]
[390881308,1760188238001,-1036.17447564,0.00014939,2]
[390881309,1760188238010,-1156.0,0.00014957,2]
[390881310,1760188238019,-214.4500913,0.00014973,2]
[390881311,1760188238029,-500.0,0.00014973,2]
[390881312,1760188238039,-500.0,0.00014973,2]
[390881313,1760188238049,-500.0,0.00014973,2]
[390881314,1760188238058,-322.76049362,0.00014991,2]
[390881315,1760188238068,-322.6107,0.00014991,2]
[390881316,1760188238077,-646.65982734,0.00014991,2]
[390881317,1760188238087,-500.0,0.00014999,2]
[390881318,1760188238097,-500.0,0.00014999,2]
[390881319,1760188238106,-5325.42375274,0.00015,2]
[390881322,1760188240336,-465.97907493,0.00015,2]
[390881328,1760188243009,-14250.41710409,0.00015,2]
[390881329,1760188243078,-11471.89869993,0.00015,2]
[390881333,1760188245945,-281.575,0.00015,2]
[390881345,1760188808080,996.38880769,0.00027,120]
[390881346,1760188866346,203.84,7.078e-05,2]
[390881403,1760189231101,440.0,0.00027397,120]
[390881404,1760189246710,440.0,0.00027397,120]
[390881409,1760189281422,440.0,0.00027397,120]
[390881447,1760189432130,-339.84,0.00013699,2]
[390881448,1760189432142,-464.11,0.00013699,2]
[390881449,1760189432151,-35.89,0.00013722,2]
[390881450,1760189432301,-164.11,0.00013722,2]
[390881451,1760189432311,-490.4,0.00014037,3]
[390881452,1760189432319,-200.0,0.00014133,2]
[390881453,1760189432329,-203.84,0.00014156,2]
[390881454,1760189432338,-600.0,0.000142,5]
[390881455,1760189432347,-1500.0,0.00014224,2]
[390881456,1760189432357,-150.0,0.00014272,2]
[390881457,1760189432366,-300.0,0.000143,5]
[390881458,1760189432375,-1200.0,0.000143,5]
[390881459,1760189432391,-307.284984,0.00014328,2]
[390881460,1760189432408,-163.45,0.00014376,2]
[390881461,1760189432422,-600.0,0.000144,5]
[390881462,1760189432435,-1800.0,0.000144,5]
[390881463,1760189432449,-505.0,0.00014438,2]
[390881464,1760189432466,-150.0,0.00014478,2]
[390881465,1760189432482,-413.29,0.00014478,2]
[390881466,1760189432496,-413.29,0.00014478,2]
[390881467,1760189432507,-413.23,0.00014478,2]
[390881468,1760189432522,-1000.0,0.000145,5]
[390881469,1760189432536,-890.0,0.00014519,2]
[390881470,1760189432551,-542.02,0.00014578,2]
[390881471,1760189432567,-1300.0,0.000146,5]
[390881472,1760189432581,-779.0,0.00014618,2]
[390881473,1760189432597,-248.71531821,0.0001467,2]
[390881474,1760189432613,-441.51420005,0.00014678,2]
[390881475,1760189432628,-192.88546605,0.00014678,2]
[390881476,1760189432642,-329.615281,0.00014678,2]
[390881477,1760189432660,-266.0,0.00014678,2]
[390881480,1760189432674,-5104.04,0.00014679,2]
[390881481,1760189432688,-150.0,0.00014699,2]
[390881482,1760189432700,-1000.0,0.000147,2]
[390881483,1760189432712,-15296.32162194,0.000147,2]
[390881484,1760189432731,-150.0,0.000147,2]
[390881485,1760189432742,-1700.0,0.000147,5]
[390881486,1760189432753,-1404.31,0.00014717,2]
[390881487,1760189432767,-595.0,0.00014763,2]
[390881488,1760189432784,-150.0,0.000148,2]
[390881489,1760189432796,-300.0,0.000148,2]
[390881490,1760189432808,-300.0,0.000148,5]
[390881491,1760189432834,-869.0,0.0001481,2]
[390881492,1760189432846,-2079.064,0.00014874,2]
[390881493,1760189432859,-86775.1791275,0.00014875,2]
[390881494,1760189432872,-3962.9257767,0.00014875,2]
[390881495,1760189432887,-3626.2819565,0.00014875,2]
[390881496,1760189432900,-54166.682314,0.00014875,2]
[390881497,1760189432913,-200.0,0.0001488,2]
[390881498,1760189432927,-546.25,0.000149,2]
[390881499,1760189432941,-546.15,0.000149,2]
[390881500,1760189432953,-7208.59149199,0.000149,2]
[390881509,1760189438089,-2400.0,0.000145,5]
[390881510,1760189438099,-3100.0,0.000146,5]
[390881511,1760189438109,-5610.91252149,0.000149,2]
[390881512,1760189438147,-2970.00001,0.000149,2]
[390881513,1760189438159,-5333.19991667,0.000149,2]
[390881514,1760189438170,-6346.80758099,0.000149,2]
[390881515,1760189438208,-447.20556288,0.000149,2]
[390881517,1760189438320,-9991.41375359,0.000149,2]
[390881518,1760189438330,-300.0,0.000149,5]
[390881519,1760189438339,-568.68004222,0.000149,2]
[390881520,1760189438350,-345.59374832,0.000149,2]
[390881521,1760189438359,-201.55781785,0.000149,2]
[390881522,1760189438369,-243.0,0.0001493,2]
[390881523,1760189438378,-981.07857624,0.00014939,2]
[390881524,1760189438388,-186.47042732,0.00014944,2]
[390881525,1760189438398,-500.0,0.00014973,2]
[390881526,1760189438408,-500.0,0.00014973,2]
[390881527,1760189438417,-500.0,0.00014973,2]
[390881528,1760189438427,-646.65982734,0.00014991,2]
[390881529,1760189438440,-322.6107,0.00014991,2]
[390881530,1760189438449,-1007.0,0.00015,2]
[390881531,1760189438459,-709367.41815375,0.00015,2]
[390881532,1760189438469,-5393.48314712,0.00015,2]
[390881533,1760189438480,-500.0,0.00015,2]
[390881534,1760189438489,-500.01,0.00015,2]
[390881535,1760189438498,-600.0,0.00015,2]
[390881536,1760189438508,-14525.469078,0.00015,2]
[390881537,1760189438517,-211.91177793,0.00015,2]
[390881538,1760189438527,-14792.2824767,0.00015,2]
[390881539,1760189438536,-893.033,0.00015,2]
[390881540,1760189438546,-156.283,0.00015,2]
[390881541,1760189438556,-500.0,0.00015,2]
[390881542,1760189438566,-1000.0,0.00015,2]
[390881543,1760189438576,-150.0,0.00015,2]
[390881544,1760189438586,-546.25,0.00015,2]
[390881545,1760189438596,-168.07,0.00015,2]
[390881546,1760189438605,-546.25,0.00015,2]
[390881547,1760189438615,-8313752.61441337,0.00015,2]
[390881548,1760189438626,-6089.31407295,0.00015,2]
[390881549,1760189438638,-11560.0537694,0.00015,2]
[390881556,1760189440262,-600.0,0.000147,5]
[390881557,1760189440272,-54521.19203869,0.00015,2]
[390881558,1760189440284,-133017.74348734,0.00015,2]
[390881559,1760189440296,-307.8,0.00015,2]
[390881560,1760189440331,-564.0919997,0.00015,2]
[390881561,1760189440343,-292.983,0.00015,2]
[390881562,1760189440382,-3250.26175537,0.00015,2]
[390881563,1760189440393,-421.09294334,0.00015,2]
[390881579,1760189443118,-500.0,0.00014036,2]
[390881580,1760189443127,-342.26145612,0.00014036,2]
[390881581,1760189443176,-157.73854388,0.00014036,2]
[390881582,1760189443185,-500.0,0.00014036,2]
[390881583,1760189443195,-500.0,0.00014036,2]
[390881584,1760189443204,-500.0,0.00014036,2]
[390881585,1760189443219,-500.0,0.00014036,2]
[390881586,1760189443230,-500.0,0.00014036,2]
[390881587,1760189443240,-500.0,0.00014036,2]
[390881588,1760189443249,-500.0,0.00014036,2]
[390881589,1760189443259,-500.0,0.00014036,2]
[390881590,1760189443268,-500.0,0.00014036,2]
[390881591,1760189443277,-500.0,0.00014036,2]
[390881592,1760189443287,-500.0,0.00014036,2]
[390881593,1760189443297,-500.0,0.00014036,2]
[390881594,1760189443306,-500.0,0.00014036,2]
[390881595,1760189443315,-551.85503893,0.00014036,2]
[390881596,1760189443324,-500.0,0.00014036,2]
[390881597,1760189443334,-500.0,0.00014036,2]
[390881598,1760189443342,-500.0,0.00014036,2]
[390881599,1760189443352,-600.0,0.000148,5]
[390881600,1760189443361,-600.0,0.000149,5]
[390881601,1760189443370,-28467.70181478,0.00015,2]
[390881602,1760189443545,-513079.53840679,0.00015,2]
[390881603,1760189443554,-151.0,0.00015,2]
[390881604,1760189443564,-1812.2257,0.00015,2]
[390881605,1760189443573,-2022.90396124,0.00015,2]
[390881606,1760189443585,-7874.71377308,0.00015,2]
[390881607,1760189443599,-500.0,0.00015,2]
[390881608,1760189443608,-500.0,0.00015,2]
[390881609,1760189443618,-500.0,0.00015,2]
[390881610,1760189443627,-500.0,0.00015,2]
[390881611,1760189443636,-500.0,0.00015,2]
[390881612,1760189443646,-500.0,0.00015,2]
[390881613,1760189443655,-577.20818699,0.00015,2]
[390881614,1760189443665,-937.18,0.00015,2]
[390881615,1760189443674,-1723345.22997072,0.00015,2]
[390881617,1760189446373,-191.64836349,0.000149,2]
[390881618,1760189446382,-159.01709164,0.00015,2]
[390881643,1760189581453,1428.2,0.00014939,30]
[390881644,1760189593207,500.0,0.00027397,120]
[390881645,1760189596722,2000.0,0.00027397,120]
[390881646,1760189601817,500.0,0.00027397,120]
[390881658,1760189764908,740.0,0.00027397,120]
[390881679,1760190035679,174.9222879,0.00027397,120]
[390881702,1760190196186,2000.0,0.00027397,120]
[390881703,1760190198360,199.974465,0.00027397,120]
[390881705,1760190202033,500.0,0.00027397,120]
[390881714,1760190286432,2023.87,0.00027397,120]
[390881770,1760190632256,-454.77884729,0.00013626,2]
[390881771,1760190632425,-45.22115271,0.00013626,2]
[390881772,1760190632435,-561.31722655,0.00013626,2]
[390881773,1760190632444,-1852.42,0.00013627,2]
[390881774,1760190632454,-160.64,0.0001367,2]
[390881775,1760190632463,-518.58556074,0.00013677,2]
[390881776,1760190632473,-160.43977978,0.00013685,2]
[390881777,1760190632482,-202.77,0.00013685,2]
[390881778,1760190632492,-160.77041029,0.00013778,2]
[390881779,1760190632502,-250.0,0.00013864,7]
[390881780,1760190632512,-461.0952,0.0001397,2]
[390881781,1760190632522,-1200.0,0.00013991,2]
[390881783,1760190632531,-2751.0,0.00013992,2]
[390881784,1760190632541,-222.32634028,0.00014043,2]
[390881785,1760190632560,-77.67365972,0.00014043,2]
[390881786,1760190632568,-666.0,0.00014044,3]
[390881787,1760190632578,-300.0,0.00014067,2]
[390881788,1760190632587,-214.0,0.00014069,2]
[390881789,1760190632598,-1451.69,0.0001407,2]
[390881791,1760190632607,-1600.0,0.00014083,2]
[390881793,1760190632616,-150.0,0.00014128,2]
[390881795,1760190632626,-336.13789313,0.00014128,2]
[390881797,1760190632636,-428.98816699,0.00014128,2]
[390881798,1760190632645,-195.97043221,0.00014128,2]
[390881799,1760190632654,-186.59297322,0.00014128,2]
[390881800,1760190632663,-151.0,0.00014129,2]
[390881802,1760190632672,-151.0,0.00014129,2]
[390881804,1760190632682,-151.0,0.00014129,2]
[390881806,1760190632691,-151.0,0.00014129,2]
[390881810,1760190632957,-151.0,0.00014129,2]
[390881811,1760190632992,-151.0,0.00014129,2]
[390881812,1760190633006,-151.0,0.00014129,2]
[390881813,1760190633015,-151.0,0.00014129,2]
[390881814,1760190633026,-151.0,0.00014129,2]
[390881815,1760190633035,-151.0,0.00014129,2]
[390881816,1760190633046,-151.0,0.00014129,2]
[390881817,1760190633055,-151.0,0.00014129,2]
[390881818,1760190633065,-151.0,0.00014129,2]
[390881819,1760190633076,-203.27553451,0.00014129,2]
[390881820,1760190633086,-151.0,0.00014129,2]
[390881821,1760190633095,-151.0,0.00014129,2]
[390881822,1760190633104,-151.0,0.00014129,2]
[390881823,1760190633115,-151.0,0.00014129,2]
[390881824,1760190633125,-151.0,0.00014129,2]
[390881825,1760190633135,-151.0,0.00014129,2]
[390881826,1760190633144,-151.0,0.00014129,2]
[390881827,1760190633154,-151.0,0.00014129,2]
[390881828,1760190633167,-151.0,0.00014129,2]
[390881829,1760190633176,-200.0,0.00014129,2]
[390881830,1760190633186,-13422.6,0.00014138,2]
[390881831,1760190633196,-250.0,0.00014168,2]
[390881832,1760190633205,-322.6107,0.00014249,2]
[390881833,1760190633215,-646.65982734,0.00014249,2]
[390881834,1760190633224,-248.71531821,0.00014249,2]
[390881835,1760190633234,-546.25,0.00014378,2]
[390881836,1760190633243,-151.66,0.00014378,2]
[390881837,1760190633254,-947.0,0.00014424,2]
[390881838,1760190633263,-513.34598059,0.00014478,2]
[390881839,1760190634106,-32.90401941,0.00014478,2]
[390881840,1760190634116,-597.40598059,0.000145,2]
[390881861,1760190638211,-35.59401941,0.000145,2]
[390881862,1760190638221,-748.0,0.00014515,2]
[390881863,1760190638230,-747.0178532,0.00014647,2]
[390881864,1760190638323,-818.9821468,0.00014647,2]
[390881865,1760190638332,-474.32,0.000147,2]
[390881866,1760190638342,-265.52785827,0.00014767,2]
[390881867,1760190638353,-74.47214173,0.00014767,2]
[390881868,1760190638362,-306.42785827,0.00014807,2]
[390881869,1760190638375,-1492.09142673,0.00014807,2]
[390881870,1760190638385,-557.0,0.00014831,2]
[390881871,1760190638396,-743.10240178,0.0001485,2]
[390881872,1760190638406,-836.0,0.0001486,2]
[390881873,1760190638416,-1017.0,0.0001487,2]
[390881874,1760190638425,-200.0,0.0001488,2]
[390881875,1760190638435,-1074.0,0.00014887,2]
[390881876,1760190638444,-356.0,0.00014888,2]
[390881877,1760190638454,-160.77041029,0.00014899,2]
[390881878,1760190638464,-500.0,0.000149,2]
[390881879,1760190638473,-500.0,0.000149,2]
[390881880,1760190638482,-500.0,0.000149,2]
[390881881,1760190638492,-160.53088859,0.000149,2]
[390881882,1760190638502,-156.87089788,0.000149,2]
[390881883,1760190638511,-283.97550568,0.000149,2]
[390881884,1760190638521,-735.80893218,0.00014939,2]
[390881885,1760190638531,-905.0,0.00014961,2]
[390881886,1760190638540,-500.0,0.00014973,2]
[390881887,1760190638550,-500.0,0.00014973,2]
[390881889,1760190638563,-500.0,0.00014973,2]
[390881891,1760190638572,-262.13030039,0.00014991,2]
[390881893,1760190638582,-933.61,0.00014991,2]
[390881895,1760190638591,-151.0,0.00014997,2]
[390881897,1760190638600,-3114.3036443,0.00014999,2]
[390881899,1760190638610,-3171.5092281,0.00014999,2]
[390881901,1760190638619,-1000.0,0.00014999,2]
[390881903,1760190638628,-150.0,0.00014999,2]
[390881905,1760190638638,-150.0,0.00014999,2]
[390881906,1760190638647,-150.0,0.00014999,2]
[390881907,1760190638656,-500.0,0.00014999,2]
[390881908,1760190638665,-150.0,0.00014999,2]
[390881909,1760190638674,-5376.74752776,0.00014999,2]
[390881910,1760190638686,-13228.10820124,0.00014999,2]
[390881911,1760190638696,-1081.5507199,0.00014999,2]
[390881912,1760190638705,-500.0,0.00014999,2]
[390881913,1760190638715,-150.0,0.00014999,2]
[390881914,1760190638724,-500.0,0.00014999,2]
[390881915,1760190638733,-155.0,0.00014999,2]
[390881916,1760190638742,-150.0,0.00014999,2]
[390881917,1760190638752,-500.0,0.00014999,2]
[390881918,1760190638762,-150.0,0.00014999,2]
[390881919,1760190638772,-150.0,0.00014999,2]
[390881920,1760190638782,-150.0,0.00014999,2]
[390881921,1760190638791,-64.14906443,0.00014999,2]
[390881922,1760190638829,-85.85093557,0.00014999,2]
[390881923,1760190638839,-150.0,0.00014999,2]
[390881924,1760190638849,-150.0,0.00014999,2]
[390881925,1760190638859,-455.29182394,0.00014999,2]
[390881926,1760190638886,-44.70817606,0.00014999,2]
[390881927,1760190638895,-500.0,0.00014999,2]
[390881928,1760190638905,-150.0,0.00014999,2]
[390881929,1760190638915,-150.0,0.00014999,2]
[390881930,1760190638924,-54.28141804,0.00014999,2]
[390881931,1760190638936,-445.71858196,0.00014999,2]
[390881932,1760190638946,-150.0,0.00014999,2]
[390881933,1760190638955,-500.0,0.00014999,2]
[390881934,1760190638964,-500.0,0.00014999,2]
[390881935,1760190638974,-500.0,0.00014999,2]
[390881936,1760190638984,-150.0,0.00014999,2]
[390881937,1760190638994,-1009.0,0.00014999,2]
[390881938,1760190639005,-150.0,0.00014999,2]
[390881939,1760190639014,-150.0,0.00014999,2]
[390881940,1760190639025,-180.5419477,0.00014999,2]
[390881941,1760190639034,-500.0,0.00014999,2]
[390881942,1760190639043,-500.0,0.00014999,2]
[390881943,1760190639052,-466.0,0.00014999,2]
[390881944,1760190639062,-803.0,0.00015,2]
[390881945,1760190639072,-341582.85190681,0.00015,2]
[390881950,1760190640391,-1366.10663717,0.000149,2]
[390881952,1760190640400,-682.5845453,0.00015,2]
[390882023,1760190643316,-219.41300137,0.00014536,2]
[390882024,1760190643386,-280.58699863,0.00014536,2]
[390882025,1760190643396,-500.0,0.00014591,2]
[390882026,1760190643405,-302.13372929,0.00014646,2]
[390882027,1760190643414,-157.35723238,0.00015,2]
[390882028,1760190643523,-1668.42192148,0.00015,2]
[390882086,1760190646258,-1152.0,0.00014999,2]
[390882087,1760190646268,-7394.96469352,0.00015,2]
[390882088,1760190646373,-1348.04208834,0.00015,2]
[390882089,1760190646435,-369.4651545,0.00015,2]
[390882090,1760190646495,-8512.16873809,0.00015,2]
[390882101,1760190796864,500.0,0.00027397,120]
[390882102,1760190811441,10642.24941923,0.00027397,120]
[390882103,1760190835186,156.0,0.000273,120]
[390882171,1760191384158,16357.01774953,0.00027397,120]
[390882175,1760191397106,500.0,0.00027397,120]
[390882425,1760191814356,257.1,0.00027397,120]
[390882442,1760191831503,-461.565,0.00014031,2]
[390882443,1760191831603,-1038.435,0.00014031,2]
[390882444,1760191831612,-702.15,0.00014147,2]
[390882445,1760191831623,-370.97291183,0.00014157,2]
[390882446,1760191831632,-70.82169861,0.00014167,2]
[390882447,1760191831644,-79.17830139,0.00014167,2]
[390882448,1760191831654,-466.13169861,0.00014673,2]
[390882449,1760191831665,-456.7858882,0.00014673,2]
[390882450,1760191831698,-1396.7875919,0.00014673,2]
[390882453,1760191831805,-152.80735229,0.00014673,2]
[390882454,1760191831815,-250.0,0.00014747,2]
[390882455,1760191831825,-253.0,0.00014783,2]
[390882456,1760191831835,-2106.2220065,0.000148,2]
[390882457,1760191831844,-1200.0,0.00014897,2]
[390882459,1760191831854,-209.0,0.00014897,2]
[390882460,1760191831864,-169.0,0.00014897,2]
[390882461,1760191831873,-150.0,0.00014899,2]
[390882463,1760191831882,-127.43863121,0.000149,2]
[390882464,1760191831898,-4872.56136879,0.000149,2]
[390882465,1760191831908,-31509.52374019,0.000149,2]
[390882475,1760191837495,-428.97691515,0.00014799,2]
[390882476,1760191837505,-235.29652519,0.00014799,2]
[390882477,1760191837517,-334.60085501,0.000149,2]
[390882478,1760191837550,-281.4,0.000149,2]
[390882480,1760191839523,-1656.23479173,0.000149,2]
[390882481,1760191839586,-279.32789999,0.000149,2]
[390882482,1760191839599,-565.3731454,0.000149,2]
[390882486,1760191842627,-793.39062848,0.000149,2]
[390882502,1760191846042,-1293.6764,0.000149,2]
[390882503,1760191846066,-1349.51381903,0.000149,2]
[390882504,1760191846095,-450.85402016,0.000149,2]
[390882505,1760191846106,-839.9099692,0.000149,2]
[390882506,1760191846117,-996.92408764,0.000149,2]
[390883324,1760191892154,154.83,7.048e-05,2]
[390883325,1760191892356,154.83,7.44e-05,2]
[390883329,1760191892567,154.83,7.831e-05,2]
[390883330,1760191892763,154.83,8.223e-05,2]
[390883332,1760191892992,154.83,8.614e-05,2]
[390883333,1760191893190,154.83,9.006e-05,2]
[390883335,1760191893378,154.83,9.398e-05,2]
[390883336,1760191893634,154.83,9.789e-05,2]
[390883337,1760191893783,154.83,0.00010181,2]
[390883338,1760191893968,154.83,0.00010572,2]
[390883339,1760191894391,154.83,0.00010964,2]
[390883340,1760191894605,154.83,0.00011355,2]
[390883341,1760191894810,154.83,0.00011747,2]
[390883342,1760191895030,154.83,0.00012138,2]
[390883343,1760191895234,48.34928435,0.0001253,2]
[390883344,1760191895260,106.48071565,0.0001253,2]
[390883354,1760191998841,500.0,0.00025399,120]
[390883388,1760192107304,2723.898,0.00027397,120]
[390883463,1760192478535,744.06999238,0.0002739,120]
[390883630,1760193031891,-154.83,0.00012922,2]
[390883631,1760193031900,-106.69,0.00013313,2]
[390883632,1760193031915,-48.14,0.00013313,2]
[390883633,1760193031924,-193.70625838,0.00013597,2]
[390883634,1760193031940,-300.0,0.00013696,2]
[390883635,1760193031958,-1200.0,0.00013696,2]
[390883636,1760193031967,-150.0,0.00013696,2]
[390883637,1760193031976,-500.0,0.00013697,2]
[390883638,1760193031985,-500.0,0.00013697,2]
[390883639,1760193031994,-500.0,0.00013697,2]
[390883640,1760193032003,-313.74205876,0.00013697,2]
[390883641,1760193032012,-500.0,0.00013697,2]
[390883642,1760193032021,-500.0,0.00013697,2]
[390883643,1760193032031,-500.0,0.00013697,2]
[390883644,1760193032041,-500.0,0.00013697,2]
[390883646,1760193032050,-500.0,0.00013697,2]
[390883648,1760193032059,-500.0,0.00013697,2]
[390883650,1760193032069,-500.0,0.00013697,2]
[390883651,1760193032078,-643.96360227,0.00013697,2]
[390883652,1760193032088,-500.0,0.00013697,2]
[390883653,1760193032097,-500.0,0.00013697,2]
[390883655,1760193032107,-763.75,0.00013699,2]
[390883657,1760193032115,-154.83,0.00013705,2]
[390883658,1760193032124,-666.0,0.00013738,3]
[390883661,1760193032134,-2751.0,0.00013814,2]
[390883663,1760193032143,-200.0,0.00013921,2]
[390883665,1760193032152,-627.22385981,0.00014096,2]
[390883668,1760193032161,-154.83,0.00014096,2]
[390883670,1760193032170,-2500.0,0.00014214,2]
[390883672,1760193032179,-492.91053112,0.00014214,2]
[390883673,1760193032191,-2007.08946888,0.00014214,2]
[390883674,1760193032200,-1743.66807396,0.00014214,2]
[390883675,1760193032210,-300.0,0.00014214,2]
[390883676,1760193032220,-300.0,0.00014214,2]
[390883677,1760193032233,-250.0,0.00014214,2]
[390883678,1760193032242,-195.0,0.00014214,2]
[390883679,1760193032251,-176.73879595,0.00014214,2]
[390883680,1760193032262,-1805.39745795,0.00014214,2]
[390883681,1760193032271,-150.0,0.00014214,2]
[390883682,1760193032281,-2500.0,0.00014214,2]
[390883683,1760193032291,-300.0,0.00014214,2]
[390883684,1760193032303,-2000.0,0.00014214,2]
[390883685,1760193032312,-150.38637213,0.00014214,4]
[390883686,1760193032321,-336.03,0.00014278,2]
[390883687,1760193032346,-150.0,0.00014278,2]
[390883688,1760193032355,-150.0,0.00014278,2]
[390883689,1760193032364,-150.0,0.00014278,2]
[390883690,1760193032373,-3683.14437929,0.0001439,2]
[390883691,1760193032382,-153.0,0.0001442,2]
[390883692,1760193032392,-339.0,0.00014508,2]
[390883693,1760193032401,-315.0,0.00014508,2]
[390883694,1760193032410,-1331.0,0.00014511,2]
[390883695,1760193032420,-1130.0,0.0001454,2]
[390883696,1760193032429,-281.0,0.00014637,2]
[390883697,1760193032439,-695.0,0.00014692,2]
[390883698,1760193032448,-150.0,0.000147,2]
[390883699,1760193032458,-2151.39041742,0.000148,2]
[390883700,1760193032468,-2151.39041742,0.000148,2]
[390883701,1760193032477,-1000.0,0.000148,2]
[390883702,1760193032486,-1561.2082,0.000148,2]
[390883703,1760193032495,-245.25596913,0.0001481,2]
[390883704,1760193032507,-71.03403087,0.0001481,2]
[390883705,1760193032516,-301.17,0.0001481,2]
[390883706,1760193032527,-255.0,0.00014819,2]
[390883707,1760193032536,-32.89596913,0.00014891,2]
[390883722,1760193037728,-148.01918312,0.00013695,2]
[390883959,1760193040132,-271.42282622,0.00013695,2]
[390883964,1760193040174,-80.55799066,0.00013695,2]
[390883966,1760193040183,-590.41578431,0.00013695,2]
[390883967,1760193040192,-198.39871803,0.00013696,2]
[390883968,1760193040201,-546.99879758,0.00013696,2]
[390883969,1760193040210,-164.70756764,0.00013696,2]
[390883970,1760193040220,-118.10403087,0.00014891,2]
[390883971,1760193040232,-151.0,0.00014891,2]
[390883972,1760193040241,-151.0,0.00014891,2]
[390883973,1760193040250,-294.67910459,0.00014891,2]
[390883974,1760193040260,-646.65982734,0.00014891,2]
[390883975,1760193040271,-322.6107,0.00014891,2]
[390883976,1760193040281,-151.0,0.00014891,2]
[390883977,1760193040292,-570.1288,0.00014895,2]
[390883978,1760193040301,-1657.77056137,0.00014898,2]
[390883979,1760193040315,-237.82924448,0.00014898,2]